[Event "LJ Slovak Open 2022"]
[Site "Liptovsky Jan"]
[Date "2022.06.24"]
[Round "2.22"]
[White "Petrik, Matus"]
[Black "Spik, Peter"]
[Result "0-1"]
[ECO "A17"]
[WhiteElo "1684"]
[BlackElo "1969"]
[Annotator "RC"]
[PlyCount "40"]
[EventDate "2022.06.23"]
[EventType "swiss"]
[EventCountry "SVK"]
[SourceTitle "playchess.com"]
[Source "ChessBase"]
[SourceQuality "1"]
[TimeControl "3600+30"]

1. c4 {[%emt 0:08:13]} Nf6 {[%emt 0:02:20]} 2. Nc3 {[%emt 0:00:05]} e6 {[%emt 0:01:34]} 3. g3 {[%emt 0:00:38]} d5 {[%emt 0:00:25]} 4. cxd5 {[%emt 0:00:24]} exd5 {[%emt 0:00:07]} 5. Bg2 {[%emt 0:00:19]} Be7 {[%emt 0:00:32]} 6. e3 {[%emt 0:01:49]} O-O {[%emt 0:00:28]} 7. Nge2 {[%emt 0:00:09]} c6 {[%emt 0:01:20]} 8. O-O {[%emt 0:00:07]} Nbd7 {[%emt 0:00:28]} 9. d4 {[%emt 0:05:07]} Re8 {[%emt 0:00:09]} 10. b3 {[%emt 0:00:20]} Nf8 {[%emt 0:00:15]} 11. Qc2 {[%emt 0:01:11]} Bd6 {[%emt 0:00:20]} 12. Na4 {[%emt 0:02:19]} Bg4 {[%emt 0:03:52]} 13. Nc5 {[%emt 0:01:38]} Qc8 {[%emt 0:00:35]} 14. Bb2 {[%emt 0:07:59]} Ne6 {[%emt 0:03:37]} 15. Rfe1 {[%emt 0:02:09]} Ng5 {[%emt 0:00:44]} 16. Kh1 {[%emt 0:01:44]} Bf3 {[%emt 0:01:19]} 17. Ng1 {[%emt 0:01:33]} Bxg2+ {[%emt 0:01:16]} 18. Kxg2 {[%emt 0:00:02]} Nge4 {[%emt 0:01:20]} 19. Nxe4 {[%emt 0:10:33]} Nxe4 {[%emt 0:00:48]} 20. Ne2 {[%emt 0:01:58]} Qf5 {[%emt 0:00:43]} 0-1

[Event "LJ Slovak Open 2022"]
[Site "Liptovsky Jan"]
[Date "2022.06.24"]
[Round "2.23"]
[White "Kolesar, Peter"]
[Black "Krestian, Darius"]
[Result "1-0"]
[ECO "B13"]
[WhiteElo "1969"]
[BlackElo "1659"]
[Annotator "RC"]
[PlyCount "91"]
[EventDate "2022.06.23"]
[EventType "swiss"]
[EventCountry "SVK"]
[SourceTitle "playchess.com"]
[Source "ChessBase"]
[SourceQuality "1"]
[TimeControl "3600+30"]

1. e4 {[%emt 0:02:13]} c6 {[%emt 0:00:09]} 2. Nf3 {[%emt 0:00:07]} d5 {[%emt 0:00:07]} 3. Nc3 {[%emt 0:00:05]} Nf6 {[%emt 0:00:09]} 4. exd5 {[%emt 0:00:53]} cxd5 {[%emt 0:00:36]} 5. d4 {[%emt 0:00:39]} Bg4 {[%emt 0:00:47]} 6. Be2 {[%emt 0:03:16]} e6 {[%emt 0:01:12]} 7. O-O {[%emt 0:00:39]} Be7 {[%emt 0:01:11]} 8. h3 {[%emt 0:00:12]} Bh5 {[%emt 0:00:58]} 9. Bf4 {[%emt 0:00:20]} a6 {[%emt 0:00:41]} 10. Re1 {[%emt 0:00:53]} O-O {[%emt 0:00:45]} 11. a3 {[%emt 0:01:46]} Nc6 {[%emt 0:02:39]} 12. Rb1 {[%emt 0:22:43]} Qb6 {[%emt 0:02:43]} 13. Be3 {[%emt 0:00:26]} Rac8 {[%emt 0:01:26]} 14. Ne5 {[%emt 0:01:01]} Bxe2 {[%emt 0:01:11]} 15. Nxe2 {[%emt 0:00:34]} Na5 {[%emt 0:04:36]} 16. Bg5 {[%emt 0:05:37]} Qc7 {[%emt 0:01:13]} 17. c3 {[%emt 0:00:29]} Nc4 {[%emt 0:08:51]} 18. Ng3 {[%emt 0:02:24]} h6 {[%emt 0:05:19]} 19. Bxf6 {[%emt 0:02:13]} Bxf6 {[%emt 0:00:20]} 20. Nxc4 {[%emt 0:00:14]} Qxc4 {[%emt 0:00:32]} 21. Qg4 {[%emt 0:01:09]} Kh7 {[%emt 0:07:21]} 22. Nh5 {[%emt 0:03:27]} Rg8 {[%emt 0:01:46]} 23. Qf3 {[%emt 0:00:29]} Rc7 {[%emt 0:11:09]} 24. Nxf6+ {[%emt 0:05:05]} gxf6 {[%emt 0:00:10]} 25. Qxf6 {[%emt 0:00:56]} Rg6 {[%emt 0:00:15]} 26. Qf3 {[%emt 0:00:48]} f5 {[%emt 0:00:30]} 27. Kh1 {[%emt 0:01:52]} Rcg7 {[%emt 0:05:13]} 28. Rg1 {[%emt 0:00:02]} Qc7 {[%emt 0:01:12]} 29. Rbe1 {[%emt 0:00:14]} Qe7 {[%emt 0:01:16]} 30. Qf4 {[%emt 0:05:52]} Qf6 {[%emt 0:07:21]} 31. Re3 {[%emt 0:00:45]} Qd8 {[%emt 0:01:05]} 32. Kh2 {[%emt 0:00:54]} Qb6 {[%emt 0:00:39]} 33. Re2 {[%emt 0:00:57]} Qb5 {[%emt 0:00:28]} 34. Qf3 {[%emt 0:00:56]} Qc4 {[%emt 0:01:47]} 35. g3 {[%emt 0:01:11]} Qc7 {[%emt 0:00:22]} 36. Re5 {[%emt 0:00:28]} Qb6 {[%emt 0:00:20]} 37. b4 {[%emt 0:03:19]} Qb5 {[%emt 0:00:16]} 38. Rge1 {[%emt 0:00:15]} Re7 {[%emt 0:01:17]} 39. Rxf5 {[%emt 0:00:47]} Qa4 {[%emt 0:01:11]} 40. Rf7+ {[%emt 0:01:43]} Rxf7 {[%emt 0:00:14]} 41. Qxf7+ {[%emt 0:00:02]} Rg7 {[%emt 0:00:08]} 42. Qxe6 {[%emt 0:00:15]} Qxa3 {[%emt 0:00:15]} 43. Qf5+ {[%emt 0:00:19]} Kh8 {[%emt 0:00:13]} 44. Re8+ {[%emt 0:00:19]} Rg8 {[%emt 0:00:19]} 45. Qf6+ {[%emt 0:01:03]} Kh7 {[%emt 0:00:27]} 46. Re7+ {[%emt 0:00:06]} 1-0

[Event "LJ Slovak Open 2022"]
[Site "Liptovsky Jan"]
[Date "2022.06.24"]
[Round "2.24"]
[White "Brida, Lukas"]
[Black "Podjavorinsky, Michal"]
[Result "0-1"]
[ECO "D31"]
[WhiteElo "1673"]
[BlackElo "1941"]
[Annotator "ChessBase"]
[PlyCount "82"]
[EventDate "2022.06.23"]
[EventType "swiss"]
[EventCountry "SVK"]
[SourceTitle "playchess.com"]
[Source "ChessBase"]
[SourceQuality "1"]
[TimeControl "3600+30"]

1. d4 {[%emt 0:02:27]} d5 {[%emt 0:02:59]} 2. c4 {[%emt 0:00:10]} e6 {[%emt 0:00:07]} 3. Nc3 {[%emt 0:00:06]} c6 {[%emt 0:00:05]} 4. e4 {[%emt 0:00:10]} dxe4 {[%emt 0:00:12]} 5. Nxe4 {[%emt 0:00:09]} Bb4+ {[%emt 0:00:13]} 6. Nc3 {[%emt 0:01:09]} c5 {[%emt 0:02:10]} 7. Nf3 {[%emt 0:02:08]} Nf6 {[%emt 0:01:56]} 8. a3 {[%emt 0:00:53]} Ba5 {[%emt 0:01:30]} 9. Be3 {[%emt 0:08:35]} Ne4 {[%emt 0:06:43]} 10. Qc2 {[%emt 0:00:23]} Nxc3 {[%emt 0:03:38]} 11. bxc3 {[%emt 0:03:35]} cxd4 {[%emt 0:00:25]} 12. Nxd4 {[%emt 0:01:37]} Nc6 {[%emt 0:02:37]} 13. Nxc6 {[%emt 0:01:29]} bxc6 {[%emt 0:00:08]} 14. Bd3 {[%emt 0:00:25]} Qf6 {[%emt 0:01:29]} 15. Rc1 {[%emt 0:04:04]} h6 {[%emt 0:03:05]} 16. O-O {[%emt 0:00:07]} O-O {[%emt 0:00:18]} 17. f4 {[%emt 0:00:41]} Rd8 {[%emt 0:04:20]} 18. Rf3 {[%emt 0:07:33]} Qe7 {[%emt 0:02:54]} 19. f5 {[%emt 0:09:28]} exf5 {[%emt 0:01:21]} 20. Rg3 {[%emt 0:04:45]} Bb6 {[%emt 0:01:49]} 21. Bd4 {[%emt 0:04:14]} Bxd4+ {[%emt 0:00:50]} 22. cxd4 {[%emt 0:00:05]} Rxd4 {[%emt 0:02:16]} 23. Bxf5 {[%emt 0:02:36]} Bxf5 {[%emt 0:03:25]} 24. Qxf5 {[%emt 0:00:10]} Rad8 {[%emt 0:00:47]} 25. h3 {[%emt 0:03:34]} g6 {[%emt 0:04:54]} 26. Qf2 {[%emt 0:02:08]} Rd1+ {[%emt 0:00:52]} 27. Rxd1 {[%emt 0:00:08]} Rxd1+ {[%emt 0:00:05]} 28. Kh2 {[%emt 0:00:11]} Qc7 {[%emt 0:02:16]} 29. h4 {[%emt 0:01:53]} Rd3 {[%emt 0:00:39]} 30. Kh3 {[%emt 0:00:17]} Rxg3+ {[%emt 0:01:14]} 31. Qxg3 {[%emt 0:00:07]} Qxg3+ {[%emt 0:01:04]} 32. Kxg3 {[%emt 0:00:09]} Kf8 {[%emt 0:00:12]} 33. Kf4 {[%emt 0:01:08]} Ke7 {[%emt 0:00:09]} 34. Ke5 {[%emt 0:00:28]} f6+ {[%emt 0:00:39]} 35. Kd4 {[%emt 0:01:58]} Kd6 {[%emt 0:00:26]} 36. h5 {[%emt 0:00:17]} g5 {[%emt 0:06:25]} 37. g4 {[%emt 0:00:25]} c5+ {[%emt 0:00:40]} 38. Kd3 {[%emt 0:03:32]} Ke5 {[%emt 0:00:46]} 39. Ke3 {[%emt 0:00:19]} f5 {[%emt 0:00:16]} 40. gxf5 {[%emt 0:00:08]} Kxf5 {[%emt 0:00:07]} 41. Kf3 {[%emt 0:01:54]} g4+ {[%emt 0:01:08]} 0-1

[Event "LJ Slovak Open 2022"]
[Site "Liptovsky Jan"]
[Date "2022.06.24"]
[Round "2.25"]
[White "Elias, David"]
[Black "Saravanan Durga"]
[Result "1-0"]
[ECO "D11"]
[WhiteElo "1901"]
[BlackElo "1660"]
[Annotator "ChessBase"]
[PlyCount "87"]
[EventDate "2022.06.23"]
[EventType "swiss"]
[EventCountry "SVK"]
[SourceTitle "playchess.com"]
[Source "ChessBase"]
[SourceQuality "1"]
[TimeControl "3600+30"]

1. d4 {[%emt 0:00:10]} Nf6 {[%emt 0:00:18]} 2. Nf3 {[%emt 0:00:09]} d5 {[%emt 0:00:12]} 3. g3 {[%emt 0:00:18]} Bf5 {[%emt 0:00:32]} 4. Bg2 {[%emt 0:00:21]} e6 {[%emt 0:00:50]} 5. O-O {[%emt 0:00:15]} Be7 {[%emt 0:01:15]} 6. c4 {[%emt 0:00:54]} c6 {[%emt 0:02:26]} 7. Nc3 {[%emt 0:00:19]} h6 {[%emt 0:11:45]} 8. b3 {[%emt 0:05:25]} Ne4 {[%emt 0:11:53]} 9. Bb2 {[%emt 0:00:58]} Nd7 {[%emt 0:02:25]} 10. Nd2 {[%emt 0:05:54]} Nxd2 {[%emt 0:06:48]} 11. Qxd2 {[%emt 0:00:03]} dxc4 {[%emt 0:16:05]} 12. e4 {[%emt 0:02:02]} Bg6 {[%emt 0:00:11]} 13. bxc4 {[%emt 0:00:14]} Ne5 {[%emt 0:01:01]} 14. Qe2 {[%emt 0:07:08]} Qxd4 {[%emt 0:03:08]} 15. Nd5 {[%emt 0:09:18]} Qxc4 {[%emt 0:01:12]} 16. Nc7+ {[%emt 0:03:41]} Kf8 {[%emt 0:03:17]} 17. Rae1 {[%emt 0:08:41]} Qxe2 {[%emt 0:02:42]} 18. Rxe2 {[%emt 0:00:02]} Rd8 {[%emt 0:02:30]} 19. Bxe5 {[%emt 0:00:16]} Bd6 {[%emt 0:00:39]} 20. Bxd6+ {[%emt 0:04:55]} Rxd6 {[%emt 0:00:03]} 21. Rb2 {[%emt 0:00:28]} Ke7 {[%emt 0:01:10]} 22. Rxb7 {[%emt 0:01:12]} Rd7 {[%emt 0:00:07]} 23. Rfb1 {[%emt 0:02:20]} Rhd8 {[%emt 0:00:41]} 24. Bf3 {[%emt 0:01:47]} f5 {[%emt 0:00:16]} 25. e5 {[%emt 0:00:57]} f4 {[%emt 0:00:55]} 26. R1b2 {[%emt 0:00:56]} fxg3 {[%emt 0:00:05]} 27. hxg3 {[%emt 0:01:06]} c5 {[%emt 0:00:55]} 28. Na6 {[%emt 0:00:36]} c4 {[%emt 0:00:21]} 29. Nc5 {[%emt 0:00:58]} Rxb7 {[%emt 0:00:13]} 30. Rxb7+ {[%emt 0:00:07]} Ke8 {[%emt 0:00:02]} 31. Bc6+ {[%emt 0:00:13]} Kf8 {[%emt 0:00:49]} 32. Nxe6+ {[%emt 0:00:03]} Kg8 {[%emt 0:00:04]} 33. Nxd8 {[%emt 0:00:19]} c3 {[%emt 0:00:07]} 34. Bd5+ {[%emt 0:00:39]} Kh7 {[%emt 0:00:17]} 35. Ne6 {[%emt 0:00:22]} c2 {[%emt 0:00:39]} 36. Nf8+ {[%emt 0:00:13]} Kh8 {[%emt 0:00:06]} 37. Nxg6+ {[%emt 0:00:11]} Kh7 {[%emt 0:00:04]} 38. Nf8+ {[%emt 0:00:29]} Kh8 {[%emt 0:00:10]} 39. Rc7 {[%emt 0:00:04]} c1=Q+ {[%emt 0:00:46]} 40. Rxc1 {[%emt 0:00:03]} a5 {[%emt 0:00:17]} 41. Rc8 {[%emt 0:00:31]} a4 {[%emt 0:00:25]} 42. Ng6+ {[%emt 0:00:10]} Kh7 {[%emt 0:00:06]} 43. Bf7 {[%emt 0:00:06]} h5 {[%emt 0:00:14]} 44. Rh8# {[%emt 0:00:07]} 1-0

[Event "LJ Slovak Open 2022"]
[Site "Liptovsky Jan"]
[Date "2022.06.24"]
[Round "2.26"]
[White "Kulich, Daniel"]
[Black "Korenova, Simona"]
[Result "1/2-1/2"]
[ECO "D14"]
[WhiteElo "1648"]
[BlackElo "1895"]
[Annotator "NA RC"]
[PlyCount "51"]
[EventDate "2022.06.23"]
[EventType "swiss"]
[EventCountry "SVK"]
[SourceTitle "playchess.com"]
[Source "ChessBase"]
[SourceQuality "1"]
[TimeControl "3600+30"]

1. d4 {[%emt 0:00:04]} d5 {[%emt 0:00:09]} 2. c4 {[%emt 0:00:19]} c6 {[%emt 0:00:19]} 3. cxd5 {[%emt 0:00:15]} cxd5 {[%emt 0:00:19]} 4. Bf4 {[%emt 0:00:07]} Nc6 {[%emt 0:03:00]} 5. e3 {[%emt 0:01:13]} Bf5 {[%emt 0:01:04]} 6. Nc3 {[%emt 0:00:37]} e6 {[%emt 0:00:33]} 7. Bd3 {[%emt 0:01:38]} Bg6 {[%emt 0:02:55]} 8. Nf3 {[%emt 0:00:20]} Nf6 {[%emt 0:02:18]} 9. h3 {[%emt 0:00:11]} Bd6 {[%emt 0:02:38]} 10. Bxd6 {[%emt 0:00:15]} Qxd6 {[%emt 0:00:11]} 11. O-O {[%emt 0:00:12]} O-O {[%emt 0:02:10]} 12. Bxg6 {[%emt 0:01:26]} hxg6 {[%emt 0:01:47]} 13. Rc1 {[%emt 0:01:22]} Rfe8 {[%emt 0:05:22]} 14. Qd3 {[%emt 0:03:55]} Rad8 {[%emt 0:03:59]} 15. Rfd1 {[%emt 0:02:59]} Rd7 {[%emt 0:10:27]} 16. a3 {[%emt 0:02:31]} a6 {[%emt 0:05:33]} 17. Na4 {[%emt 0:00:57]} Ne4 {[%emt 0:02:37]} 18. b4 {[%emt 0:02:39]} b5 {[%emt 0:01:10]} 19. Nc5 {[%emt 0:00:27]} Nxc5 {[%emt 0:00:23]} 20. Rxc5 {[%emt 0:00:54]} Rc7 {[%emt 0:02:34]} 21. Rdc1 {[%emt 0:01:37]} Rec8 {[%emt 0:00:23]} 22. Qc2 {[%emt 0:02:04]} f6 {[%emt 0:06:19]} 23. Qxg6 {[%emt 0:02:08]} Ne7 $18 {[%emt 0:00:57]} 24. Rxc7 {[%emt 0:04:51]} Rxc7 {[%emt 0:00:29]} 25. Qe8+ {[%emt 0:00:12]} Kh7 {[%emt 0:00:08]} 26. Qh5+ {[%emt 0:00:06]} 1/2-1/2

[Event "LJ Slovak Open 2022"]
[Site "Liptovsky Jan"]
[Date "2022.06.24"]
[Round "2.27"]
[White "Gajdosik, Marian"]
[Black "Janouskova, Eliska"]
[Result "1-0"]
[ECO "B50"]
[WhiteElo "1902"]
[BlackElo "1167"]
[Annotator "ChessBase"]
[PlyCount "138"]
[EventDate "2022.06.23"]
[EventType "swiss"]
[EventCountry "SVK"]
[SourceTitle "playchess.com"]
[Source "ChessBase"]
[SourceQuality "1"]
[TimeControl "3600+30"]

1. e4 {[%emt 0:00:07]} c5 {[%emt 0:00:17]} 2. Nf3 {[%emt 0:00:07]} e6 {[%emt 0:00:23]} 3. c3 {[%emt 0:00:08]} Nf6 {[%emt 0:01:09]} 4. d3 {[%emt 0:00:06]} d6 {[%emt 0:01:21]} 5. Be2 {[%emt 0:00:07]} Be7 {[%emt 0:01:23]} 6. Nbd2 {[%emt 0:00:06]} Nc6 {[%emt 0:02:23]} 7. O-O {[%emt 0:01:16]} a6 {[%emt 0:01:36]} 8. a4 {[%emt 0:01:46]} b6 {[%emt 0:00:12]} 9. Re1 {[%emt 0:00:48]} Bb7 {[%emt 0:02:56]} 10. Qc2 {[%emt 0:01:32]} Rc8 {[%emt 0:04:31]} 11. Nf1 {[%emt 0:01:36]} O-O {[%emt 0:01:44]} 12. Ng3 {[%emt 0:00:06]} Qd7 {[%emt 0:01:45]} 13. h3 {[%emt 0:02:11]} Rfd8 {[%emt 0:01:24]} 14. Be3 {[%emt 0:00:11]} h6 {[%emt 0:02:29]} 15. d4 {[%emt 0:02:02]} cxd4 {[%emt 0:01:11]} 16. Nxd4 {[%emt 0:00:06]} Ne5 {[%emt 0:01:40]} 17. Nf3 {[%emt 0:01:15]} Nc4 {[%emt 0:04:19]} 18. Bxc4 {[%emt 0:01:37]} Rxc4 {[%emt 0:00:05]} 19. Bxb6 {[%emt 0:00:07]} Rdc8 {[%emt 0:00:39]} 20. a5 {[%emt 0:00:45]} Qb5 {[%emt 0:03:28]} 21. Re2 {[%emt 0:03:03]} Nd7 {[%emt 0:02:22]} 22. Bd4 {[%emt 0:00:51]} R4c6 {[%emt 0:03:08]} 23. Qa4 {[%emt 0:01:43]} Qxa4 {[%emt 0:00:54]} 24. Rxa4 {[%emt 0:00:07]} Nc5 {[%emt 0:00:17]} 25. Rb4 {[%emt 0:00:49]} R6c7 {[%emt 0:00:57]} 26. Bxc5 {[%emt 0:02:39]} dxc5 {[%emt 0:00:22]} 27. Rb6 {[%emt 0:00:38]} c4 {[%emt 0:01:40]} 28. b4 {[%emt 0:00:14]} cxb3 {[%emt 0:05:28]} 29. Rxb3 {[%emt 0:00:07]} Bc6 {[%emt 0:01:12]} 30. Reb2 {[%emt 0:05:06]} Kh7 {[%emt 0:05:44]} 31. Nd4 {[%emt 0:00:44]} Ba4 {[%emt 0:02:09]} 32. Rb7 {[%emt 0:00:15]} Bf6 {[%emt 0:00:41]} 33. Rxc7 {[%emt 0:00:32]} Rxc7 {[%emt 0:00:19]} 34. Rb4 {[%emt 0:00:04]} Bxd4 {[%emt 0:02:10]} 35. cxd4 {[%emt 0:00:51]} Bb5 {[%emt 0:00:24]} 36. Rb2 {[%emt 0:01:43]} Rd7 {[%emt 0:00:20]} 37. Rd2 {[%emt 0:00:06]} e5 {[%emt 0:00:40]} 38. d5 {[%emt 0:00:06]} f6 {[%emt 0:00:26]} 39. f3 {[%emt 0:02:33]} Kg8 {[%emt 0:02:00]} 40. Kf2 {[%emt 0:00:14]} Kf7 {[%emt 0:00:19]} 41. Rc2 {[%emt 0:00:42]} Ba4 {[%emt 0:01:10]} 42. Rc8 {[%emt 0:00:12]} Bb5 {[%emt 0:00:37]} 43. Nf5 {[%emt 0:00:11]} h5 {[%emt 0:04:47]} 44. Rh8 {[%emt 0:01:18]} g6 {[%emt 0:00:56]} 45. Rh7+ {[%emt 0:00:34]} Ke8 {[%emt 0:01:28]} 46. Rxd7 {[%emt 0:00:19]} Kxd7 {[%emt 0:00:23]} 47. Nh4 {[%emt 0:01:12]} g5 {[%emt 0:01:25]} 48. Nf5 {[%emt 0:00:05]} Kd8 {[%emt 0:00:34]} 49. h4 {[%emt 0:00:49]} Bd7 {[%emt 0:00:57]} 50. g4 {[%emt 0:02:34]} hxg4 {[%emt 0:01:11]} 51. fxg4 {[%emt 0:00:31]} gxh4 {[%emt 0:00:14]} 52. Kg2 {[%emt 0:00:14]} Kc7 {[%emt 0:02:02]} 53. Kh3 {[%emt 0:00:09]} Kd8 {[%emt 0:01:49]} 54. Kxh4 {[%emt 0:00:15]} Ke8 {[%emt 0:00:25]} 55. Kh5 {[%emt 0:02:44]} Kf7 {[%emt 0:00:26]} 56. Kh6 {[%emt 0:00:16]} Ba4 {[%emt 0:00:30]} 57. g5 {[%emt 0:01:16]} fxg5 {[%emt 0:00:20]} 58. Kxg5 {[%emt 0:00:07]} Bc2 {[%emt 0:00:28]} 59. Ng3 {[%emt 0:00:14]} Bd3 {[%emt 0:00:21]} 60. Kf5 {[%emt 0:00:08]} Ke7 {[%emt 0:01:08]} 61. Kxe5 {[%emt 0:00:12]} Kd7 {[%emt 0:00:35]} 62. Nf5 {[%emt 0:00:33]} Kd8 {[%emt 0:00:13]} 63. Kd4 {[%emt 0:00:18]} Bb5 {[%emt 0:00:21]} 64. e5 {[%emt 0:00:08]} Kd7 {[%emt 0:00:13]} 65. e6+ {[%emt 0:00:06]} Kd8 {[%emt 0:00:12]} 66. Ke5 {[%emt 0:00:23]} Ba4 {[%emt 0:00:17]} 67. d6 {[%emt 0:00:41]} Ke8 {[%emt 0:00:47]} 68. Kf6 {[%emt 0:01:02]} Bb5 {[%emt 0:00:25]} 69. e7 {[%emt 0:02:08]} Bd7 {[%emt 0:00:24]} 1-0

[Event "LJ Slovak Open 2022"]
[Site "Liptovsky Jan"]
[Date "2022.06.24"]
[Round "2.28"]
[White "Veres Alex"]
[Black "Rucek, Peter"]
[Result "0-1"]
[ECO "B56"]
[WhiteElo "1000"]
[BlackElo "1899"]
[Annotator "NA RC"]
[PlyCount "81"]
[EventDate "2022.06.23"]
[EventType "swiss"]
[EventCountry "SVK"]
[SourceTitle "playchess.com"]
[Source "ChessBase"]
[SourceQuality "1"]
[TimeControl "3600+30"]

1. e4 {[%emt 0:00:03]} c5 {[%emt 0:00:09]} 2. Nf3 {[%emt 0:00:16]} d6 {[%emt 0:00:08]} 3. d4 {[%emt 0:00:18]} cxd4 {[%emt 0:00:07]} 4. Nxd4 {[%emt 0:00:21]} Nf6 {[%emt 0:00:08]} 5. Nc3 {[%emt 0:00:35]} Nc6 {[%emt 0:00:04]} 6. Nxc6 {[%emt 0:00:16]} bxc6 {[%emt 0:00:09]} 7. Bc4 {[%emt 0:00:22]} Bb7 {[%emt 0:01:57]} 8. Bf4 {[%emt 0:00:40]} e6 {[%emt 0:01:25]} 9. O-O {[%emt 0:00:43]} Be7 {[%emt 0:00:44]} 10. Bg5 {[%emt 0:01:19]} O-O {[%emt 0:00:17]} 11. Bxf6 {[%emt 0:00:24]} Bxf6 {[%emt 0:00:08]} 12. Qf3 {[%emt 0:01:06]} d5 {[%emt 0:00:55]} 13. exd5 {[%emt 0:00:43]} cxd5 {[%emt 0:00:06]} 14. Bd3 {[%emt 0:00:39]} Qc8 {[%emt 0:05:45]} 15. Qh3 {[%emt 0:00:45]} g6 {[%emt 0:01:33]} 16. Nb5 {[%emt 0:01:00]} Qc6 {[%emt 0:01:12]} 17. Qf3 {[%emt 0:01:31]} e5 {[%emt 0:05:51]} 18. Be2 {[%emt 0:01:27]} a6 {[%emt 0:00:41]} 19. Nc3 {[%emt 0:00:26]} e4 {[%emt 0:01:09]} 20. Qg3 {[%emt 0:01:45]} d4 {[%emt 0:00:20]} 21. Nd1 {[%emt 0:00:55]} Qxc2 {[%emt 0:01:07]} 22. Bg4 {[%emt 0:01:55]} Rad8 {[%emt 0:02:28]} 23. h3 {[%emt 0:02:19]} Rfe8 {[%emt 0:00:18]} 24. f3 {[%emt 0:01:36]} e3 {[%emt 0:00:25]} 25. Re1 {[%emt 0:01:58]} Be5 {[%emt 0:02:43]} 26. Qh4 {[%emt 0:00:59]} h5 {[%emt 0:00:47]} 27. Bxh5 {[%emt 0:00:23]} gxh5 {[%emt 0:00:15]} 28. Qg5+ {[%emt 0:00:52]} Qg6 {[%emt 0:00:23]} 29. Qxg6+ {[%emt 0:00:28]} fxg6 {[%emt 0:00:02]} 30. g4 {[%emt 0:01:10]} Bxf3 {[%emt 0:00:21]} 31. gxh5 {[%emt 0:00:42]} gxh5 {[%emt 0:00:10]} 32. b3 {[%emt 0:00:43]} Kh7 {[%emt 0:00:43]} 33. Kf1 {[%emt 0:00:34]} e2+ {[%emt 0:01:13]} 34. Rxe2 {[%emt 0:00:27]} Bxe2+ {[%emt 0:00:07]} 35. Kxe2 {[%emt 0:00:22]} d3+ {[%emt 0:00:02]} 36. Kd2 {[%emt 0:00:36]} Bxa1 {[%emt 0:00:03]} 37. h4 {[%emt 0:00:30]} Re2+ {[%emt 0:00:05]} 38. Kc1 {[%emt 0:00:56]} Rc8+ {[%emt 0:00:18]} 39. Kb1 {[%emt 0:00:17]} Re1 {[%emt 0:00:17]} 40. a4 {[%emt 0:00:19]} Rc2 {[%emt 0:00:16]} 41. Kxa1 {[%emt 0:00:36]} 0-1

[Event "LJ Slovak Open 2022"]
[Site "Liptovsky Jan"]
[Date "2022.06.24"]
[Round "2.29"]
[White "Polacok, Jozef"]
[Black "Chlpek, Daniel"]
[Result "0-1"]
[ECO "B22"]
[WhiteElo "1386"]
[BlackElo "2030"]
[Annotator "RC"]
[PlyCount "44"]
[EventDate "2022.06.23"]
[EventType "swiss"]
[EventCountry "SVK"]
[SourceTitle "playchess.com"]
[Source "ChessBase"]
[SourceQuality "1"]
[TimeControl "3600+30"]

1. e4 {[%emt 0:00:04]} c5 {[%emt 0:00:05]} 2. c3 {[%emt 0:00:36]} Nf6 {[%emt 0:00:07]} 3. e5 {[%emt 0:01:28]} Nd5 {[%emt 0:00:04]} 4. Nf3 {[%emt 0:00:55]} Nc6 {[%emt 0:00:07]} 5. d4 {[%emt 0:01:21]} cxd4 {[%emt 0:00:05]} 6. cxd4 {[%emt 0:01:09]} d6 {[%emt 0:00:04]} 7. Bc4 {[%emt 0:01:05]} e6 {[%emt 0:03:38]} 8. O-O {[%emt 0:01:42]} Be7 {[%emt 0:00:26]} 9. Bxd5 {[%emt 0:01:37]} exd5 {[%emt 0:00:04]} 10. Nc3 {[%emt 0:00:41]} Be6 {[%emt 0:02:36]} 11. Be3 {[%emt 0:03:08]} O-O {[%emt 0:01:39]} 12. a3 {[%emt 0:00:37]} Rc8 {[%emt 0:00:46]} 13. Rc1 {[%emt 0:00:26]} a6 {[%emt 0:00:55]} 14. b4 {[%emt 0:00:41]} Re8 {[%emt 0:01:57]} 15. Ne1 {[%emt 0:00:29]} dxe5 {[%emt 0:00:11]} 16. Nf3 {[%emt 0:02:57]} Bg4 {[%emt 0:02:26]} 17. h3 {[%emt 0:00:57]} Bxf3 {[%emt 0:00:09]} 18. Qxf3 {[%emt 0:00:19]} exd4 {[%emt 0:00:07]} 19. Nxd5 {[%emt 0:00:42]} dxe3 {[%emt 0:00:20]} 20. Nxe7+ {[%emt 0:00:14]} Qxe7 {[%emt 0:00:05]} 21. fxe3 {[%emt 0:01:14]} Qxe3+ {[%emt 0:00:05]} 22. Kh1 {[%emt 0:00:37]} Qxf3 {[%emt 0:00:13]} 0-1